[Event "*** SCC Grand Prix: Titled Tuesday Blitz"]
[Site "Chess.com"]
[Date "2020.09.08"]
[Round "9"]
[White "Nara_Kh"]
[Black "chesslh19"]
[Result "0-1"]
[WhiteElo "2358"]
[BlackElo "2212"]
[TimeControl "180+1"]
[EndTime "11:49:05 PDT"]
[Termination "chesslh19 won by resignation"]

1. e4 {[%clk 0:03:00.9]} 1... e5 {[%clk 0:03:00.3]} 2. Nf3 {[%clk 0:02:58.2]}
2... Nf6 {[%clk 0:03:00.9]} 3. Nc3 {[%clk 0:02:56.9]} 3... Nc6 {[%clk
0:03:00.2]} 4. Bb5 {[%clk 0:02:57]} 4... Bb4 {[%clk 0:02:58.9]} 5. O-O {[%clk
0:02:56.6]} 5... O-O {[%clk 0:02:59]} 6. d3 {[%clk 0:02:56.4]} 6... d6 {[%clk
0:02:58.9]} 7. Ne2 {[%clk 0:02:56.5]} 7... Ne7 {[%clk 0:02:58.1]} 8. c3 {[%clk
0:02:55.3]} 8... Ba5 {[%clk 0:02:55]} 9. h3 {[%clk 0:02:54.3]} 9... c6 {[%clk
0:02:53.1]} 10. Ba4 {[%clk 0:02:53.8]} 10... Re8 {[%clk 0:02:36.5]} 11. Ng3
{[%clk 0:02:50.7]} 11... Ng6 {[%clk 0:02:35.5]} 12. Bc2 {[%clk 0:02:44.1]} 12...
Bb6 {[%clk 0:02:23.3]} 13. d4 {[%clk 0:02:42.4]} 13... d5 {[%clk 0:02:01.9]} 14.
dxe5 {[%clk 0:02:23.5]} 14... Nxe5 {[%clk 0:01:57.2]} 15. exd5 {[%clk
0:02:18.8]} 15... Nxf3+ {[%clk 0:01:22.6]} 16. Qxf3 {[%clk 0:02:16.9]} 16...
Qxd5 {[%clk 0:01:22.4]} 17. Qxd5 {[%clk 0:02:07]} 17... Nxd5 {[%clk 0:01:18.7]}
18. Nf5 {[%clk 0:02:01.4]} 18... Bxf5 {[%clk 0:01:15.7]} 19. Bxf5 {[%clk
0:02:00.7]} 19... g6 {[%clk 0:01:12.5]} 20. Bd3 {[%clk 0:01:55]} 20... Rad8
{[%clk 0:01:09.3]} 21. Bc4 {[%clk 0:01:55.2]} 21... Bc7 {[%clk 0:01:00.9]} 22.
Bg5 {[%clk 0:01:52.9]} 22... Rd6 {[%clk 0:00:37.1]} 23. Rad1 {[%clk 0:01:32.9]}
23... Kg7 {[%clk 0:00:35.6]} 24. Rfe1 {[%clk 0:01:19.6]} 24... Rxe1+ {[%clk
0:00:25.3]} 25. Rxe1 {[%clk 0:01:20.5]} 25... Re6 {[%clk 0:00:25.2]} 26. Rxe6
{[%clk 0:01:09.4]} 26... fxe6 {[%clk 0:00:26.1]} 27. g4 {[%clk 0:01:09.2]} 27...
Bf4 {[%clk 0:00:16.8]} 28. Bxf4 {[%clk 0:00:46.4]} 28... Nxf4 {[%clk 0:00:16.2]}
29. Kh2 {[%clk 0:00:46.6]} 29... Kf6 {[%clk 0:00:14.6]} 30. Kg3 {[%clk
0:00:45.7]} 30... g5 {[%clk 0:00:12.9]} 31. h4 {[%clk 0:00:45]} 31... h6 {[%clk
0:00:12.4]} 32. hxg5+ {[%clk 0:00:44.1]} 32... hxg5 {[%clk 0:00:13.3]} 33. Kf3
{[%clk 0:00:42.9]} 33... Ke5 {[%clk 0:00:12.7]} 34. Ke3 {[%clk 0:00:42.8]} 34...
Nd5+ {[%clk 0:00:10.7]} 35. Kf3 {[%clk 0:00:41.7]} 35... Nf4 {[%clk 0:00:10.7]}
36. Bf1 {[%clk 0:00:37.5]} 36... Nd5 {[%clk 0:00:10.2]} 37. Bd3 {[%clk
0:00:33.5]} 37... Nf4 {[%clk 0:00:10.2]} 38. Bh7 {[%clk 0:00:33.5]} 38... Nd5
{[%clk 0:00:10]} 39. Bg8 {[%clk 0:00:32.3]} 39... Nf4 {[%clk 0:00:09.8]} 40. Ke3
{[%clk 0:00:31.5]} 40... Nd5+ {[%clk 0:00:09.7]} 41. Kd3 {[%clk 0:00:30.9]}
41... Nf4+ {[%clk 0:00:09.9]} 42. Kc4 {[%clk 0:00:30.7]} 42... Kd6 {[%clk
0:00:08.9]} 43. Kd4 {[%clk 0:00:29.9]} 43... Ne2+ {[%clk 0:00:06.8]} 44. Ke4
{[%clk 0:00:28.5]} 44... Nf4 {[%clk 0:00:06.9]} 45. b4 {[%clk 0:00:25.6]} 45...
b6 {[%clk 0:00:06.6]} 46. c4 {[%clk 0:00:24.9]} 46... Ne2 {[%clk 0:00:05.2]} 47.
Kd3 {[%clk 0:00:24.6]} 47... Nf4+ {[%clk 0:00:05.2]} 48. Ke3 {[%clk 0:00:24.8]}
48... Ng2+ {[%clk 0:00:04.5]} 49. Ke4 {[%clk 0:00:24.6]} 49... Nf4 {[%clk
0:00:05]} 50. Bf7 {[%clk 0:00:24.1]} 50... c5 {[%clk 0:00:03.1]} 51. b5 {[%clk
0:00:23.5]} 51... Ne2 {[%clk 0:00:02.7]} 52. Kd3 {[%clk 0:00:23.2]} 52... Nf4+
{[%clk 0:00:02.7]} 53. Ke3 {[%clk 0:00:23.7]} 53... Ng2+ {[%clk 0:00:02.8]} 54.
Kd3 {[%clk 0:00:23.9]} 54... Nf4+ {[%clk 0:00:03.7]} 55. Kc3 {[%clk 0:00:23.9]}
55... Ne2+ {[%clk 0:00:03.9]} 56. Kd2 {[%clk 0:00:23.6]} 56... Nd4 {[%clk
0:00:04.1]} 57. Kd3 {[%clk 0:00:23.8]} 57... Nf3 {[%clk 0:00:04.1]} 58. Bg8
{[%clk 0:00:23.3]} 58... Ne5+ {[%clk 0:00:04.3]} 59. Kc3 {[%clk 0:00:22.4]}
59... Nxg4 {[%clk 0:00:04.9]} 60. f3 {[%clk 0:00:22.4]} 60... Ne5 {[%clk
0:00:04.9]} 61. a4 {[%clk 0:00:20.5]} 61... Nxf3 {[%clk 0:00:05]} 62. Bh7 {[%clk
0:00:21.2]} 62... Ne5 {[%clk 0:00:05]} 63. Be4 {[%clk 0:00:21]} 63... Nd7 {[%clk
0:00:05.2]} 64. Kd3 {[%clk 0:00:21]} 64... g4 {[%clk 0:00:05.5]} 65. Ke3 {[%clk
0:00:21]} 65... Ke5 {[%clk 0:00:05.9]} 66. Bc6 {[%clk 0:00:20.6]} 66... Nf6
{[%clk 0:00:06.5]} 67. Kf2 {[%clk 0:00:19.4]} 67... Kf4 {[%clk 0:00:06.2]} 68.
Kg2 {[%clk 0:00:19.8]} 68... e5 {[%clk 0:00:06.6]} 69. Bb7 {[%clk 0:00:19.6]}
69... e4 {[%clk 0:00:06.9]} 70. Bc6 {[%clk 0:00:19.6]} 70... e3 {[%clk
0:00:07.2]} 71. Bb7 {[%clk 0:00:17.9]} 71... Ne4 {[%clk 0:00:06.7]} 72. Kf1
{[%clk 0:00:17.5]} 72... Nc3 {[%clk 0:00:06.6]} 73. Bc6 {[%clk 0:00:17.1]} 73...
Nxa4 {[%clk 0:00:06.5]} 74. Bb7 {[%clk 0:00:17.2]} 74... Nb2 {[%clk 0:00:06.7]}
75. Bd5 {[%clk 0:00:17.7]} 75... g3 {[%clk 0:00:06.8]} 76. Ke2 {[%clk
0:00:17.9]} 76... g2 {[%clk 0:00:06.9]} 77. Bxg2 {[%clk 0:00:17.8]} 77... Nxc4
{[%clk 0:00:07.2]} 78. Bc6 {[%clk 0:00:18]} 78... Nd6 {[%clk 0:00:07.3]} 79. Bd7
{[%clk 0:00:17.8]} 79... Ne4 {[%clk 0:00:07.1]} 80. Be6 {[%clk 0:00:17.6]} 80...
Nc3+ {[%clk 0:00:07.1]} 81. Kd3 {[%clk 0:00:18.2]} 81... Nxb5 {[%clk 0:00:06.4]}
82. Bd5 {[%clk 0:00:18]} 82... Nd6 {[%clk 0:00:06.4]} 83. Ke2 {[%clk 0:00:18]}
83... Ke5 {[%clk 0:00:06.4]} 84. Bg8 {[%clk 0:00:17.7]} 84... Kd4 {[%clk
0:00:06.6]} 85. Bh7 {[%clk 0:00:18]} 85... c4 {[%clk 0:00:06.9]} 86. Bc2 {[%clk
0:00:18.6]} 86... b5 {[%clk 0:00:07.4]} 87. Bb1 {[%clk 0:00:19.3]} 87... b4
{[%clk 0:00:07.8]} 88. Bg6 {[%clk 0:00:18.5]} 88... b3 {[%clk 0:00:08.2]} 89.
Bf7 {[%clk 0:00:18.2]} 89... a5 {[%clk 0:00:08.6]} 0-1

[Event "*** SCC Grand Prix: Titled Tuesday Blitz"]
[Site "Chess.com"]
[Date "2020.09.08"]
[Round "10"]
[White "saraswathii"]
[Black "SeedToTree"]
[Result "0-1"]
[WhiteElo "2332"]
[BlackElo "2526"]
[TimeControl "180+1"]
[EndTime "11:51:08 PDT"]
[Termination "SeedToTree won by resignation"]

1. e4 {[%clk 0:02:45]} 1... e5 {[%clk 0:02:59.9]} 2. d3 {[%clk 0:02:42.8]} 2...
Nc6 {[%clk 0:02:55.9]} 3. Nf3 {[%clk 0:02:42.4]} 3... Nf6 {[%clk 0:02:55.2]} 4.
g3 {[%clk 0:02:42.5]} 4... d5 {[%clk 0:02:55.4]} 5. exd5 {[%clk 0:02:41.7]} 5...
Qxd5 {[%clk 0:02:55.6]} 6. Bg2 {[%clk 0:02:41.2]} 6... e4 {[%clk 0:02:53.1]} 7.
Nc3 {[%clk 0:02:36.7]} 7... Bb4 {[%clk 0:02:52.7]} 8. dxe4 {[%clk 0:02:36.3]}
8... Qxd1+ {[%clk 0:02:51.7]} 9. Kxd1 {[%clk 0:02:35.7]} 9... Bxc3 {[%clk
0:02:51.6]} 10. bxc3 {[%clk 0:02:35]} 10... Bg4 {[%clk 0:02:43.7]} 11. Re1
{[%clk 0:02:27]} 11... O-O-O+ {[%clk 0:02:42.3]} 12. Ke2 {[%clk 0:02:22.8]}
12... Nxe4 {[%clk 0:02:37]} 13. c4 {[%clk 0:02:16.4]} 0-1

[Event "*** SCC Grand Prix: Titled Tuesday Blitz"]
[Site "Chess.com"]
[Date "2020.09.08"]
[Round "10"]
[White "VladimirBugayev"]
[Black "MYMChessAcademy"]
[Result "1-0"]
[WhiteElo "2251"]
[BlackElo "2078"]
[TimeControl "180+1"]
[EndTime "11:51:47 PDT"]
[Termination "VladimirBugayev won by checkmate"]

1. e4 {[%clk 0:03:00.8]} 1... c5 {[%clk 0:02:58.6]} 2. a3 {[%clk 0:03:00.1]}
2... e6 {[%clk 0:02:56.8]} 3. b4 {[%clk 0:02:59.2]} 3... cxb4 {[%clk 0:02:57.3]}
4. axb4 {[%clk 0:02:59.5]} 4... Bxb4 {[%clk 0:02:57.1]} 5. Bb2 {[%clk
0:02:59.6]} 5... Nf6 {[%clk 0:02:54.1]} 6. e5 {[%clk 0:02:59.8]} 6... Nd5 {[%clk
0:02:53.4]} 7. c4 {[%clk 0:03:00.1]} 7... Nb6 {[%clk 0:02:52.2]} 8. Ra3 {[%clk
0:03:00.1]} 8... Bxa3 {[%clk 0:02:49.7]} 9. Bxa3 {[%clk 0:03:00.6]} 9... Nc6
{[%clk 0:02:46.6]} 10. Qg4 {[%clk 0:02:58.3]} 10... Rg8 {[%clk 0:02:43.6]} 11.
Bd6 {[%clk 0:02:57.4]} 11... Ne7 {[%clk 0:02:42.7]} 12. Bd3 {[%clk 0:02:53.9]}
12... g6 {[%clk 0:02:35.4]} 13. Nc3 {[%clk 0:02:48.7]} 13... Nf5 {[%clk
0:02:35.1]} 14. Bxf5 {[%clk 0:02:40.6]} 14... exf5 {[%clk 0:02:36]} 15. Qh3
{[%clk 0:02:39.7]} 15... f6 {[%clk 0:02:35]} 16. Qxh7 {[%clk 0:02:35]} 16... Rf8
{[%clk 0:02:23.4]} 17. Qxg6+ {[%clk 0:02:17.5]} 17... Rf7 {[%clk 0:02:04.7]} 18.
Qg8+ {[%clk 0:02:15.9]} 18... Rf8 {[%clk 0:02:04.5]} 19. Qxf8# {[%clk
0:02:16.3]} 1-0

[Event "*** SCC Grand Prix: Titled Tuesday Blitz"]
[Site "Chess.com"]
[Date "2020.09.08"]
[Round "10"]
[White "MFguimaraes"]
[Black "Th3_Hound"]
[Result "0-1"]
[WhiteElo "2408"]
[BlackElo "2581"]
[TimeControl "180+1"]
[EndTime "11:52:14 PDT"]
[Termination "Th3_Hound won by resignation"]

1. e4 {[%clk 0:02:55.6]} 1... e5 {[%clk 0:02:58.6]} 2. Nf3 {[%clk 0:02:55.2]}
2... Nc6 {[%clk 0:02:56.4]} 3. Bb5 {[%clk 0:02:54.6]} 3... g6 {[%clk 0:02:55.3]}
4. d4 {[%clk 0:02:54.1]} 4... exd4 {[%clk 0:02:55.2]} 5. Nxd4 {[%clk 0:02:53.4]}
5... Bg7 {[%clk 0:02:55.3]} 6. c3 {[%clk 0:02:46.8]} 6... Nge7 {[%clk
0:02:52.9]} 7. O-O {[%clk 0:02:46.7]} 7... O-O {[%clk 0:02:48.4]} 8. Bg5 {[%clk
0:02:45.8]} 8... h6 {[%clk 0:02:47.1]} 9. Bh4 {[%clk 0:02:46]} 9... g5 {[%clk
0:02:34]} 10. Bg3 {[%clk 0:02:45.9]} 10... Nxd4 {[%clk 0:02:33.8]} 11. cxd4
{[%clk 0:02:45.9]} 11... f5 {[%clk 0:02:25.9]} 12. Bc4+ {[%clk 0:02:40.8]} 12...
d5 {[%clk 0:01:58.8]} 13. exd5 {[%clk 0:02:40.5]} 13... f4 {[%clk 0:01:54.3]}
14. d6+ {[%clk 0:02:40.1]} 14... Kh8 {[%clk 0:01:54.4]} 15. dxe7 {[%clk
0:02:39.2]} 15... Qxe7 {[%clk 0:01:55.3]} 16. Nc3 {[%clk 0:02:30.9]} 16... fxg3
{[%clk 0:01:51.6]} 17. fxg3 {[%clk 0:02:28.7]} 17... Bf5 {[%clk 0:01:45.1]} 18.
Qd2 {[%clk 0:02:23.1]} 18... Rad8 {[%clk 0:01:43.9]} 19. d5 {[%clk 0:02:23.4]}
19... Qc5+ {[%clk 0:01:42.8]} 0-1

[Event "*** SCC Grand Prix: Titled Tuesday Blitz"]
[Site "Chess.com"]
[Date "2020.09.08"]
[Round "10"]
[White "K_A_S_T_O_R"]
[Black "AldokhinIvan"]
[Result "1-0"]
[WhiteElo "2749"]
[BlackElo "2571"]
[TimeControl "180+1"]
[EndTime "11:52:20 PDT"]
[Termination "K_A_S_T_O_R won by resignation"]

1. e4 {[%clk 0:03:00.9]} 1... c5 {[%clk 0:02:58.7]} 2. Nf3 {[%clk 0:02:53.1]}
2... e6 {[%clk 0:02:58.9]} 3. d4 {[%clk 0:02:52.5]} 3... cxd4 {[%clk 0:02:59.2]}
4. Nxd4 {[%clk 0:02:52.6]} 4... a6 {[%clk 0:02:59.8]} 5. Bd3 {[%clk 0:02:51.5]}
5... Qc7 {[%clk 0:03:00.3]} 6. O-O {[%clk 0:02:50.7]} 6... Nf6 {[%clk
0:03:00.8]} 7. Qe2 {[%clk 0:02:50.7]} 7... Bd6 {[%clk 0:03:00.3]} 8. f4 {[%clk
0:02:48]} 8... Bc5 {[%clk 0:03:00.3]} 9. c3 {[%clk 0:02:48.4]} 9... Nc6 {[%clk
0:03:00.5]} 10. Kh1 {[%clk 0:02:43.1]} 10... Nxd4 {[%clk 0:02:57.3]} 11. cxd4
{[%clk 0:02:44]} 11... Bxd4 {[%clk 0:02:57.7]} 12. Nd2 {[%clk 0:02:32.7]} 12...
d5 {[%clk 0:02:52]} 13. e5 {[%clk 0:02:29.2]} 13... Nd7 {[%clk 0:02:50.1]} 14.
Nf3 {[%clk 0:02:20.4]} 14... Ba7 {[%clk 0:02:49.8]} 15. Bd2 {[%clk 0:02:18.2]}
15... g6 {[%clk 0:02:00]} 16. Rac1 {[%clk 0:02:15.4]} 16... Qb6 {[%clk
0:01:55.4]} 17. b4 {[%clk 0:02:11.7]} 17... Nb8 {[%clk 0:01:48.4]} 18. Rxc8+
{[%clk 0:02:06.2]} 18... Kd7 {[%clk 0:01:48.3]} 19. Rxh8 {[%clk 0:02:05.2]} 1-0

[Event "*** SCC Grand Prix: Titled Tuesday Blitz"]
[Site "Chess.com"]
[Date "2020.09.08"]
[Round "10"]
[White "UmarovSabir"]
[Black "jamik13"]
[Result "1-0"]
[WhiteElo "2374"]
[BlackElo "2221"]
[TimeControl "180+1"]
[EndTime "11:52:34 PDT"]
[Termination "UmarovSabir won by resignation"]

1. e4 {[%clk 0:03:00.9]} 1... e5 {[%clk 0:02:59.3]} 2. Nf3 {[%clk 0:03:00.1]}
2... Nc6 {[%clk 0:02:59.6]} 3. Bc4 {[%clk 0:02:58.9]} 3... Bc5 {[%clk
0:02:58.3]} 4. b4 {[%clk 0:02:58.2]} 4... Bxb4 {[%clk 0:02:57.8]} 5. c3 {[%clk
0:02:57.9]} 5... Ba5 {[%clk 0:02:57.9]} 6. d4 {[%clk 0:02:57.2]} 6... exd4
{[%clk 0:02:54.3]} 7. Qb3 {[%clk 0:02:55.7]} 7... Qe7 {[%clk 0:02:52.7]} 8. O-O
{[%clk 0:02:54.3]} 8... d3 {[%clk 0:02:48.6]} 9. Ba3 {[%clk 0:02:49.1]} 9... d6
{[%clk 0:02:47.1]} 10. e5 {[%clk 0:02:45.7]} 10... Be6 {[%clk 0:02:33.3]} 11.
Qxb7 {[%clk 0:02:31.8]} 11... Nd8 {[%clk 0:02:13.2]} 12. Bb5+ {[%clk 0:02:09.6]}
12... c6 {[%clk 0:02:02.3]} 13. Bxc6+ {[%clk 0:02:08.8]} 13... Nxc6 {[%clk
0:01:26.9]} 14. Qxc6+ {[%clk 0:02:04]} 1-0

[Event "*** SCC Grand Prix: Titled Tuesday Blitz"]
[Site "Chess.com"]
[Date "2020.09.08"]
[Round "10"]
[White "pavlitas17"]
[Black "Butterfly"]
[Result "1/2-1/2"]
[WhiteElo "2370"]
[BlackElo "2487"]
[TimeControl "180+1"]
[EndTime "11:53:22 PDT"]
[Termination "Game drawn by agreement"]

1. d4 {[%clk 0:03:00.9]} 1... Nf6 {[%clk 0:02:51.6]} 2. c4 {[%clk 0:03:00.5]}
2... c5 {[%clk 0:02:49.4]} 3. d5 {[%clk 0:03:00]} 3... b5 {[%clk 0:02:49.6]} 4.
cxb5 {[%clk 0:02:59.2]} 4... a6 {[%clk 0:02:49.1]} 5. bxa6 {[%clk 0:02:59.6]}
5... d6 {[%clk 0:02:49.6]} 6. g3 {[%clk 0:02:59.8]} 6... g6 {[%clk 0:02:50]} 7.
Bg2 {[%clk 0:03:00.1]} 7... Bg7 {[%clk 0:02:50.6]} 8. Nc3 {[%clk 0:03:00.2]}
8... Bxa6 {[%clk 0:02:50.5]} 9. Nf3 {[%clk 0:03:00]} 9... O-O {[%clk 0:02:50.6]}
10. O-O {[%clk 0:02:59]} 10... Nbd7 {[%clk 0:02:50.5]} 11. Rb1 {[%clk
0:02:59.2]} 11... Ng4 {[%clk 0:02:49.1]} 12. Re1 {[%clk 0:02:57.4]} 12... Nge5
{[%clk 0:02:47.6]} 13. Nxe5 {[%clk 0:02:56.9]} 13... Nxe5 {[%clk 0:02:47.6]} 14.
Qc2 {[%clk 0:02:57.4]} 14... Qa5 {[%clk 0:02:46.5]} 15. b3 {[%clk 0:02:55.7]}
15... Nf3+ {[%clk 0:02:42.9]} 16. Bxf3 {[%clk 0:02:52]} 16... Bxc3 {[%clk
0:02:41.9]} 17. Rd1 {[%clk 0:02:52.1]} 17... Bb7 {[%clk 0:02:39]} 18. a4 {[%clk
0:02:49]} 18... Rfb8 {[%clk 0:02:36.6]} 19. Bd2 {[%clk 0:02:48.4]} 19... Bxd2
{[%clk 0:02:35.7]} 20. Rxd2 {[%clk 0:02:46.2]} 20... Bc8 {[%clk 0:02:34.3]} 21.
Rdd1 {[%clk 0:02:41.3]} 21... Rb4 {[%clk 0:02:33.4]} 22. e4 {[%clk 0:02:37.7]}
22... Rab8 {[%clk 0:02:32.9]} 23. Be2 {[%clk 0:02:33.8]} 23... Ba6 {[%clk
0:02:27.4]} 24. Bxa6 {[%clk 0:02:33.3]} 24... Qxa6 {[%clk 0:02:28.3]} 25. f3
{[%clk 0:02:26.9]} 25... Qb6 {[%clk 0:02:26.8]} 26. Kg2 {[%clk 0:02:20.4]} 26...
c4 {[%clk 0:02:22.9]} 27. a5 {[%clk 0:02:19.6]} 27... Qb7 {[%clk 0:01:31]} 28.
a6 {[%clk 0:02:18.6]} 28... Qxa6 {[%clk 0:01:31]} 29. bxc4 {[%clk 0:02:18.5]}
29... Rxb1 {[%clk 0:01:28.9]} 30. Rxb1 {[%clk 0:02:18.2]} 30... Rxb1 {[%clk
0:01:29.4]} 31. Qxb1 {[%clk 0:02:18.6]} 31... Qxc4 {[%clk 0:01:29.8]} 32. Qb8+
{[%clk 0:02:18.6]} 32... Kg7 {[%clk 0:01:30]} 33. Qb2+ {[%clk 0:02:19]} 33... f6
{[%clk 0:01:29.9]} 34. Qd2 {[%clk 0:02:16.3]} 34... h5 {[%clk 0:01:29]} 35. h4
{[%clk 0:02:15.3]} 35... Qb3 {[%clk 0:01:27.7]} 1/2-1/2

[Event "*** SCC Grand Prix: Titled Tuesday Blitz"]
[Site "Chess.com"]
[Date "2020.09.08"]
[Round "10"]
[White "aliba25"]
[Black "Spriteball"]
[Result "1-0"]
[WhiteElo "2578"]
[BlackElo "2287"]
[TimeControl "180+1"]
[EndTime "11:53:23 PDT"]
[Termination "aliba25 won by resignation"]

1. d4 {[%clk 0:03:00.9]} 1... d5 {[%clk 0:02:59.4]} 2. c4 {[%clk 0:03:00.6]}
2... c6 {[%clk 0:02:59.8]} 3. Nf3 {[%clk 0:03:00.6]} 3... Nf6 {[%clk 0:03:00]}
4. e3 {[%clk 0:03:01.5]} 4... e6 {[%clk 0:02:59.9]} 5. Bd3 {[%clk 0:03:01.6]}
5... Nbd7 {[%clk 0:03:00.3]} 6. O-O {[%clk 0:03:02.2]} 6... Bd6 {[%clk
0:03:00.1]} 7. Nbd2 {[%clk 0:03:01.9]} 7... O-O {[%clk 0:02:59.8]} 8. e4 {[%clk
0:03:02.2]} 8... dxe4 {[%clk 0:02:59.6]} 9. Nxe4 {[%clk 0:03:03.1]} 9... Nxe4
{[%clk 0:03:00]} 10. Bxe4 {[%clk 0:03:04]} 10... Nf6 {[%clk 0:03:00.5]} 11. Bc2
{[%clk 0:03:04.7]} 11... b6 {[%clk 0:02:57.9]} 12. Bg5 {[%clk 0:03:04.4]} 12...
h6 {[%clk 0:02:55.5]} 13. Bh4 {[%clk 0:03:03.8]} 13... c5 {[%clk 0:02:46.2]} 14.
Qd3 {[%clk 0:02:58]} 14... g6 {[%clk 0:02:38.4]} 15. dxc5 {[%clk 0:02:56.2]}
15... Be7 {[%clk 0:02:38.2]} 16. cxb6 {[%clk 0:02:50.7]} 16... Qxd3 {[%clk
0:02:36.6]} 17. Bxd3 {[%clk 0:02:50.6]} 17... axb6 {[%clk 0:02:37.5]} 18. Ne5
{[%clk 0:02:48.2]} 18... Kg7 {[%clk 0:02:32.2]} 19. Be2 {[%clk 0:02:25.7]} 19...
g5 {[%clk 0:02:28.5]} 20. Bg3 {[%clk 0:02:25.4]} 20... Ne4 {[%clk 0:02:26.6]}
21. Rfd1 {[%clk 0:02:21.3]} 21... Bf6 {[%clk 0:02:22.5]} 22. Bf3 {[%clk
0:02:16.1]} 22... Bb7 {[%clk 0:02:14.3]} 23. Nd7 {[%clk 0:02:12.2]} 23... Rfd8
{[%clk 0:01:59.7]} 24. Nxf6 {[%clk 0:02:08.3]} 24... Kxf6 {[%clk 0:01:59.8]} 25.
Rxd8 {[%clk 0:02:04.9]} 25... Rxd8 {[%clk 0:01:59.5]} 26. Bc7 {[%clk 0:02:05.6]}
26... Rd2 {[%clk 0:01:56]} 27. b3 {[%clk 0:02:00]} 27... g4 {[%clk 0:01:46.4]}
28. Bxe4 {[%clk 0:01:56.3]} 28... Bxe4 {[%clk 0:01:47.3]} 29. Bxb6 {[%clk
0:01:56.8]} 29... h5 {[%clk 0:01:40.4]} 30. a4 {[%clk 0:01:51.7]} 30... Bc2
{[%clk 0:01:39.4]} 31. b4 {[%clk 0:01:51.2]} 31... Bxa4 {[%clk 0:01:38.1]} 32.
h3 {[%clk 0:01:48.1]} 32... gxh3 {[%clk 0:01:37]} 33. Rxa4 {[%clk 0:01:46.2]}
1-0

[Event "*** SCC Grand Prix: Titled Tuesday Blitz"]
[Site "Chess.com"]
[Date "2020.09.08"]
[Round "10"]
[White "gmpeter008"]
[Black "DrMamaliga"]
[Result "0-1"]
[WhiteElo "2364"]
[BlackElo "2235"]
[TimeControl "180+1"]
[EndTime "11:53:32 PDT"]
[Termination "DrMamaliga won by resignation"]

1. c4 {[%clk 0:03:00.9]} 1... c5 {[%clk 0:02:58.4]} 2. Nf3 {[%clk 0:02:35.1]}
2... Nc6 {[%clk 0:02:56.3]} 3. d4 {[%clk 0:02:35.1]} 3... cxd4 {[%clk 0:02:53]}
4. Nxd4 {[%clk 0:02:36]} 4... g6 {[%clk 0:02:53.5]} 5. Nc3 {[%clk 0:02:34.2]}
5... Bg7 {[%clk 0:02:53.3]} 6. Nc2 {[%clk 0:02:18.9]} 6... Bxc3+ {[%clk
0:02:50.8]} 7. bxc3 {[%clk 0:01:54.3]} 7... Nf6 {[%clk 0:02:51.7]} 8. f3 {[%clk
0:01:52.3]} 8... d6 {[%clk 0:02:50.4]} 9. e4 {[%clk 0:01:52]} 9... Qa5 {[%clk
0:02:49.2]} 10. Bd2 {[%clk 0:01:51.2]} 10... O-O {[%clk 0:02:47.7]} 11. Ne3
{[%clk 0:01:51.3]} 11... Ne5 {[%clk 0:02:42.3]} 12. Nd5 {[%clk 0:01:49.5]} 12...
Nxd5 {[%clk 0:02:29.7]} 13. cxd5 {[%clk 0:01:50.4]} 13... Qc5 {[%clk 0:02:29.1]}
14. h4 {[%clk 0:01:39.9]} 14... h5 {[%clk 0:02:28.4]} 15. Qc1 {[%clk 0:01:35.9]}
15... Bd7 {[%clk 0:02:23.8]} 16. Be3 {[%clk 0:01:35.5]} 16... Qa5 {[%clk
0:02:20.9]} 17. Bd4 {[%clk 0:01:35.3]} 17... Rac8 {[%clk 0:02:20.3]} 18. Be2
{[%clk 0:01:31.9]} 18... Bb5 {[%clk 0:02:20.4]} 19. g4 {[%clk 0:01:04.3]} 19...
Bxe2 {[%clk 0:02:18.1]} 20. Kxe2 {[%clk 0:01:04.1]} 20... Qb5+ {[%clk
0:02:17.6]} 21. Kd2 {[%clk 0:00:39]} 21... Qd3+ {[%clk 0:02:14.2]} 22. Ke1
{[%clk 0:00:39.1]} 22... Nxf3+ {[%clk 0:02:14.5]} 23. Kf2 {[%clk 0:00:39.3]}
23... Nxd4 {[%clk 0:02:13.9]} 0-1

[Event "*** SCC Grand Prix: Titled Tuesday Blitz"]
[Site "Chess.com"]
[Date "2020.09.08"]
[Round "10"]
[White "elegant285"]
[Black "Jojo_1608"]
[Result "1-0"]
[WhiteElo "2339"]
[BlackElo "2191"]
[TimeControl "180+1"]
[EndTime "11:53:46 PDT"]
[Termination "elegant285 won by resignation"]

1. d4 {[%clk 0:03:00.9]} 1... Nf6 {[%clk 0:02:59.5]} 2. Bf4 {[%clk 0:03:01.3]}
2... g6 {[%clk 0:02:59.5]} 3. Nc3 {[%clk 0:03:00.7]} 3... d5 {[%clk 0:02:59.4]}
4. h4 {[%clk 0:02:59.9]} 4... Bg7 {[%clk 0:02:58.8]} 5. e3 {[%clk 0:02:59.3]}
5... h5 {[%clk 0:02:58.6]} 6. Nf3 {[%clk 0:02:58.1]} 6... O-O {[%clk 0:02:58.5]}
7. Ne5 {[%clk 0:02:58.4]} 7... Nbd7 {[%clk 0:02:55]} 8. Be2 {[%clk 0:02:58.5]}
8... c6 {[%clk 0:02:53.1]} 9. Bf3 {[%clk 0:02:38.9]} 9... Nxe5 {[%clk
0:02:38.5]} 10. Bxe5 {[%clk 0:02:39.8]} 10... Bg4 {[%clk 0:02:33.4]} 11. Qe2
{[%clk 0:02:33.9]} 11... b5 {[%clk 0:02:15]} 12. O-O {[%clk 0:02:25]} 12... b4
{[%clk 0:01:57.2]} 13. Na4 {[%clk 0:02:24.2]} 13... Bxf3 {[%clk 0:01:56.7]} 14.
Qxf3 {[%clk 0:02:23.9]} 14... Ne4 {[%clk 0:01:56.2]} 15. Bxg7 {[%clk 0:02:19.6]}
15... Kxg7 {[%clk 0:01:55.8]} 16. b3 {[%clk 0:02:12.6]} 16... e6 {[%clk
0:01:54.2]} 17. Qe2 {[%clk 0:02:12.1]} 17... Qxh4 {[%clk 0:01:52.7]} 18. c4
{[%clk 0:02:04.7]} 18... bxc3 {[%clk 0:01:50.6]} 19. Rac1 {[%clk 0:02:04.1]}
19... f5 {[%clk 0:01:39.2]} 20. Nxc3 {[%clk 0:02:03.4]} 20... Rac8 {[%clk
0:01:31.6]} 21. Qa6 {[%clk 0:01:59.3]} 21... Nf6 {[%clk 0:01:20]} 22. f3 {[%clk
0:01:44]} 22... Rf7 {[%clk 0:01:14]} 23. Qxc8 {[%clk 0:01:42.8]} 23... Qg5
{[%clk 0:01:10.2]} 24. Qxe6 {[%clk 0:01:40.1]} 1-0